bitfinex/quotes_SOLUSD_20250624
["timestamp","ask_amount","ask_price","bid_price","bid_amount"]
[1750792522995,18.64964886,143.54,143.46,6.67374209]
[1750792523200,35.79374209,143.53,143.48,6.67374209]
[1750792523399,6.52,143.52,143.49,6.67374209]
[1750792523899,6.52,143.52,143.45,26.0]
[1750792523900,0.69681555,143.51,143.48,6.67374209]
[1750792524106,0.69681555,143.51,143.47,6.67374209]
[1750792524302,0.69681555,143.51,143.48,6.67374209]
[1750792524501,0.69681555,143.51,143.49,6.67374209]
[1750792524703,7.2167789,143.52,143.5,6.67374209]
[1750792525212,6.52,143.52,143.5,6.67374209]
[1750792526602,7.21677278,143.52,143.5,6.67374209]
[1750792527701,7.21677278,143.52,143.49,6.67374209]
[1750792528096,13.89051487,143.52,143.45,51.62052674]
[1750792528322,13.89051487,143.52,143.45,270.57102044]
[1750792528614,13.89051487,143.52,143.47,6.67374209]
[1750792529001,6.67374209,143.51,143.47,6.67374209]
[1750792529403,6.52,143.52,143.49,6.67374209]
[1750792529699,6.52,143.52,143.49,95.37374209]
[1750792530410,7.21678641,143.52,143.49,88.7]
[1750792530605,7.21678641,143.52,143.49,95.37374209]
[1750792532021,6.52,143.52,143.49,95.37374209]
[1750792532319,7.21677321,143.52,143.5,6.67374209]
[1750792533294,7.21677321,143.52,143.49,95.37374209]
[1750792534703,0.69677321,143.52,143.49,95.37374209]
[1750792538020,6.52,143.53,143.49,95.37374209]
[1750792538324,0.69666991,143.54,143.5,6.67374209]
[1750792538631,7.21666991,143.54,143.5,6.67374209]
[1750792539898,7.21666991,143.54,143.49,88.7]
[1750792539899,6.67374209,143.53,143.49,88.7]
[1750792540104,13.890412,143.54,143.49,95.37374209]
[1750792541503,6.67374209,143.53,143.49,88.7]
[1750792542542,6.67374209,143.53,143.49,95.37374209]
[1750792543117,0.696767,143.52,143.49,95.37374209]
[1750792543306,0.696767,143.52,143.49,88.7]
[1750792543307,7.37050909,143.52,143.49,88.7]
[1750792544232,6.67374209,143.51,143.49,88.7]
[1750792544922,6.67374209,143.5,143.49,88.7]
[1750792545140,7.3706062,143.5,143.49,88.7]
[1750792547029,9.11276647,143.5,143.45,95.37374209]
[1750792547231,6.67374209,143.49,143.45,95.37374209]
[1750792547419,0.69696124,143.48,143.45,95.37374209]
[1750792548738,8.41590236,143.5,143.45,95.37374209]
[1750792549154,6.67374209,143.5,143.46,6.67374209]
[1750792549333,0.69681555,143.51,143.47,6.67374209]
[1750792550010,6.44,143.51,143.49,6.67374209]
[1750792551537,6.44,143.51,143.5,6.67374209]
[1750792551742,6.44,143.51,143.47,121.66988759]
[1750792552146,6.44,143.51,143.5,6.67374209]
[1750792553950,6.44,143.51,143.47,121.66988759]
[1750792554133,6.44,143.51,143.5,6.67374209]
[1750792555432,7.13681555,143.51,143.49,6.67374209]
[1750792556139,7.13681555,143.51,143.49,95.37374209]
[1750792558161,6.44,143.51,143.49,95.37374209]
[1750792558668,0.69679112,143.52,143.49,95.37374209]
[1750792560464,0.69679112,143.52,143.5,6.67374209]
[1750792561165,7.0652,143.6,143.51,6.67374209]
[1750792561366,3.48161217,143.62,143.57,6.67374209]
[1750792561367,6.42,143.59,143.57,6.67374209]
[1750792561668,7.11620687,143.64,143.58,6.67374209]
[1750792561972,6.42,143.64,143.63,6.67374209]
[1750792564688,7.116201,143.64,143.6,32.67374209]
[1750792564980,13.78994309,143.64,143.6,6.67374209]
[1750792565186,6.67374209,143.63,143.59,32.67374209]
[1750792565855,0.69628185,143.62,143.58,6.67374209]
[1750792566059,7.37002394,143.62,143.58,6.67374209]
[1750792570201,35.42,143.64,143.6,6.67374209]
[1750792570410,42.09374209,143.64,143.6,6.67374209]
[1750792570623,36.11620546,143.64,143.61,6.67374209]
[1750792570783,36.11620546,143.64,143.6,6.67374209]
[1750792572004,6.42,143.64,143.62,6.67374209]
[1750792572324,7.11618734,143.64,143.61,6.67374209]
[1750792574201,0.69618734,143.64,143.61,6.67374209]
[1750792575437,7.36992943,143.64,143.6,6.67374209]
[1750792575933,0.69618734,143.64,143.6,6.67374209]
[1750792576531,7.11615098,143.65,143.61,6.67374209]
[1750792576728,6.42,143.65,143.63,6.67374209]
[1750792576934,7.1161462,143.65,143.63,6.67374209]
[1750792577329,13.78988829,143.65,143.61,6.67374209]
[1750792578139,7.1161462,143.65,143.62,6.67374209]
[1750792579017,6.42,143.65,143.63,6.67374209]
[1750792579543,7.11606058,143.67,143.64,6.67374209]
[1750792580119,7.11606058,143.67,143.63,6.67374209]
[1750792581754,7.11606058,143.67,143.64,6.67374209]
[1750792582365,7.11606058,143.67,143.63,6.67374209]
[1750792582776,13.78980267,143.67,143.62,6.67374209]
[1750792582938,6.67374209,143.66,143.62,6.67374209]
[1750792583259,6.67374209,143.66,143.6,121.66369043]
[1750792583442,6.67374209,143.66,143.62,6.67374209]
[1750792584344,7.11606058,143.67,143.63,6.67374209]
[1750792584559,7.11606058,143.67,143.64,6.67374209]
[1750792584762,7.11606058,143.67,143.63,95.37374209]
[1750792585270,7.11606058,143.67,143.64,6.67374209]
[1750792587469,7.11606058,143.67,143.63,88.7]
[1750792587667,7.11606058,143.67,143.63,95.37374209]
[1750792587854,7.11606058,143.67,143.64,6.67374209]
[1750792588470,7.11606058,143.67,143.64,88.7]
[1750792588671,7.11606058,143.67,143.64,95.37374209]
[1750792590750,8.41337167,143.71,143.66,6.67374209]
[1750792590952,6.42,143.69,143.66,95.37374209]
[1750792591372,6.42,143.69,143.67,6.67374209]
[1750792591564,6.42,143.69,143.68,6.67374209]
[1750792592074,6.42,143.69,143.67,95.37374209]
[1750792593150,6.42,143.69,143.68,6.67374209]
[1750792596066,0.69581799,143.72,143.68,6.67374209]
[1750792596268,0.69581799,143.72,143.69,6.67374209]
[1750792596465,0.69581799,143.72,143.69,95.37374209]
[1750792597784,0.69577056,143.73,143.7,6.67374209]
[1750792598172,54.20386872,143.74,143.71,6.67374209]
[1750792598487,60.87761081,143.74,143.71,88.7]
[1750792598868,6.67374209,143.73,143.71,88.7]
[1750792599357,55.94312014,143.74,143.71,88.7]
[1750792599562,62.61686223,143.74,143.71,88.7]
[1750792599973,6.67374209,143.72,143.69,88.7]
[1750792600181,55.94312014,143.74,143.65,155.3345]
[1750792600182,6.67374209,143.7,143.65,101.80824209]
[1750792601906,0.69594265,143.69,143.65,101.80824209]
[1750792602217,0.69591759,143.7,143.67,6.67374209]
[1750792602376,28.96,143.71,143.68,6.67374209]
[1750792602377,29.65586765,143.71,143.68,6.67374209]
[1750792602699,29.65586765,143.71,143.68,95.37374209]
[1750792603660,36.32960974,143.71,143.68,88.7]
[1750792603866,6.67374209,143.69,143.65,88.7]
[1750792604178,13.09374209,143.69,143.65,88.7]
[1750792604364,13.09374209,143.69,143.65,95.37374209]
[1750792604569,13.09374209,143.69,143.65,88.7]
[1750792604899,6.67374209,143.68,143.65,88.7]
[1750792605575,0.69603953,143.67,143.65,88.7]
[1750792606981,6.42,143.69,143.65,95.37374209]
[1750792607277,7.11596512,143.69,143.65,95.37374209]
[1750792607483,13.78970721,143.69,143.65,95.37374209]
[1750792610294,7.11596512,143.69,143.65,95.37374209]
[1750792610496,7.11596512,143.69,143.66,6.67374209]
[1750792611894,6.42,143.69,143.66,13.63459925]
[1750792612103,6.42,143.69,143.67,6.67374209]
[1750792614115,6.42,143.69,143.68,6.67374209]
[1750792614399,6.42,143.69,143.68,95.37374209]
[1750792614581,6.42,143.69,143.68,88.7]
[1750792614781,0.6958458,143.71,143.68,95.37374209]
[1750792615209,13.07374209,143.72,143.69,6.67374209]
[1750792615210,0.69582007,143.72,143.69,6.67374209]
[1750792615396,0.69582007,143.72,143.69,95.37374209]
[1750792616991,0.69582007,143.72,143.69,88.7]
[1750792617314,0.69582007,143.72,143.69,95.37374209]
[1750792618087,7.09576548,143.73,143.7,6.67374209]
[1750792619912,6.4,143.73,143.72,6.67374209]
[1750792620216,28.94,143.75,143.71,6.67374209]
[1750792620217,0.69565829,143.75,143.71,6.67374209]
[1750792622216,0.69565829,143.75,143.69,6.95939312]
[1750792622414,0.69565829,143.75,143.71,6.67374209]
[1750792623821,0.69561899,143.76,143.74,6.67374209]
[1750792625293,0.69561899,143.76,143.74,95.37374209]
[1750792625499,6.4,143.77,143.75,6.67374209]
[1750792625723,6.4,143.77,143.76,6.67374209]
[1750792626589,6.4,143.77,143.74,88.7]
[1750792626793,7.0955554,143.77,143.74,88.7]
[1750792627223,7.0955554,143.77,143.74,95.37374209]
[1750792628109,7.0955554,143.77,143.74,88.7]
[1750792628304,7.0955554,143.77,143.74,95.37374209]
[1750792629430,7.0955554,143.77,143.74,88.7]
[1750792629631,13.76929749,143.77,143.74,88.7]
[1750792632030,7.0955554,143.77,143.74,88.7]
[1750792632230,6.4,143.77,143.76,6.67374209]
[1750792632408,0.69547931,143.79,143.76,6.67374209]
[1750792632610,0.69547931,143.79,143.77,6.67374209]
[1750792632809,6.4,143.81,143.78,6.67374209]
[1750792633127,6.4,143.81,143.8,6.67374209]
[1750792634210,7.09536193,143.81,143.8,6.67374209]
[1750792634920,7.09536193,143.81,143.79,6.67374209]
[1750792635124,7.09536193,143.81,143.78,88.7]
[1750792635434,7.09536193,143.81,143.79,6.67374209]
[1750792636335,6.4,143.81,143.8,6.67374209]
[1750792637718,0.69523712,143.84,143.8,6.67374209]
[1750792637907,0.69523712,143.84,143.78,6.95504685]
[1750792637908,0.69523712,143.84,143.81,6.67374209]
[1750792638433,0.69516857,143.85,143.81,6.67374209]
[1750792639114,6.67374209,143.84,143.8,6.67374209]
[1750792639846,2.43309001,143.85,143.8,6.67374209]
[1750792640016,9.1068321,143.85,143.81,6.67374209]
[1750792640511,9.1068321,143.85,143.8,6.67374209]
[1750792640917,9.1068321,143.85,143.81,6.67374209]
[1750792641226,0.69516857,143.85,143.81,6.67374209]
[1750792641757,10.14791107,143.92,143.78,6.95503309]
[1750792641758,0.69492703,143.9,143.84,6.5913]
[1750792641920,6.67374209,143.89,143.84,6.67374209]
[1750792642666,13.05374209,143.91,143.87,6.67374209]
[1750792643671,7.36866912,143.9,143.82,27.16023617]
[1750792643969,7.36866912,143.9,143.85,6.67374209]
[1750792644675,9.1059867,143.9,143.85,6.67374209]
[1750792645048,0.69463739,143.96,143.89,6.67374209]
[1750792645253,7.36837948,143.96,143.91,6.67374209]
[1750792645557,33.36837948,143.96,143.91,6.67374209]
[1750792645756,6.38,143.95,143.91,6.67374209]
[1750792645970,13.05374209,143.95,143.91,6.67374209]
[1750792646157,0.69473391,143.94,143.91,6.67374209]
[1750792646351,6.38,143.95,143.93,6.67374209]
[1750792647057,6.38,143.95,143.94,6.67374209]
[1750792648355,6.38,143.95,143.92,6.5587]
[1750792648562,7.07468565,143.95,143.91,6.67374209]
[1750792648763,7.07468565,143.95,143.92,6.67374209]
[1750792649864,7.07468565,143.95,143.93,6.67374209]
[1750792650670,7.07468565,143.95,143.91,6.67374209]
[1750792650871,15.48514187,143.95,143.9,6.67374209]
[1750792651080,7.07468565,143.95,143.91,6.67374209]
[1750792652303,6.67374209,143.94,143.9,6.67374209]
[1750792652885,44.36514187,143.95,143.9,6.67374209]
[1750792653281,6.67374209,143.92,143.87,6.67374209]
[1750792653455,6.67374209,143.9,143.86,6.67374209]
[1750792653657,6.67374209,143.88,143.82,1.6563]
[1750792653856,6.67374209,143.88,143.83,6.67374209]
[1750792654176,0.69507193,143.87,143.84,6.67374209]
[1750792654365,0.69507193,143.87,143.83,6.67374209]
[1750792655171,7.36878436,143.88,143.84,6.67374209]
[1750792655380,0.69504227,143.88,143.84,6.67374209]
[1750792655773,13.74873505,143.89,143.84,6.67374209]
[1750792656080,13.74873505,143.89,143.85,6.67374209]
[1750792657180,7.07499296,143.89,143.85,6.67374209]
[1750792657389,6.38,143.89,143.88,6.67374209]
[1750792658379,6.38,143.89,143.88,9.95888083]
[1750792659061,6.38,143.94,143.88,9.95888083]
[1750792659265,6.38,143.94,143.9,9.95888083]
[1750792659487,6.38,143.94,143.91,9.95888083]
[1750792659703,6.38,143.94,143.88,6.1764]
[1750792659704,6.38,143.94,143.9,9.95888083]
[1750792660488,7.07473676,143.94,143.9,9.95888083]
[1750792662274,7.07473676,143.94,143.91,9.95888083]
[1750792665188,9.95888083,143.93,143.88,16.13528083]
[1750792665705,9.95888083,143.92,143.88,16.13528083]
[1750792666400,9.95888083,143.91,143.87,9.95888083]
[1750792666779,0.69492703,143.9,143.87,9.95888083]
[1750792669897,0.69492703,143.9,143.86,9.95888083]
[1750792670095,10.65380786,143.9,143.86,9.95888083]
[1750792670401,0.69492703,143.9,143.86,9.95888083]
[1750792674014,0.69492703,143.9,143.87,9.95888083]
[1750792676212,0.69492703,143.9,143.86,9.95888083]
[1750792678421,10.65380786,143.9,143.86,9.95888083]
[1750792678589,10.65380786,143.9,143.85,9.95888083]
[1750792680308,6.64217687,143.9,143.85,6.64217687]
[1750792682307,7.33715219,143.89,143.84,12.86167687]
[1750792682522,6.64217687,143.88,143.83,6.64217687]
[1750792683013,6.64217687,143.88,143.84,6.64217687]
[1750792683215,7.33715219,143.89,143.82,26.0]
[1750792683418,6.64217687,143.88,143.84,6.64217687]
[1750792683742,6.64217687,143.87,143.83,6.64217687]
[1750792684512,31.31224968,143.9,143.83,6.64217687]
[1750792684709,6.64217687,143.87,143.83,6.64217687]
[1750792685734,0.69512025,143.86,143.83,6.64217687]
[1750792685922,0.69512025,143.86,143.83,95.34217687]
[1750792686636,0.69512025,143.86,143.83,88.7]
[1750792687008,6.64217687,143.85,143.82,88.7]
[1750792687757,0.6952169,143.84,143.82,88.7]
[1750792690356,0.69516857,143.85,143.82,88.7]
[1750792690653,7.33734544,143.85,143.82,88.7]
[1750792692052,0.69516857,143.85,143.81,95.34217687]
[1750792692250,7.33734544,143.85,143.81,95.34217687]
[1750792692559,1.73789576,143.86,143.81,95.34217687]
[1750792692560,8.38007263,143.86,143.81,95.34217687]
[1750792692851,6.64217687,143.85,143.81,95.34217687]
[1750792694251,6.64217687,143.85,143.81,88.7]
[1750792694458,6.64217687,143.84,143.81,88.7]
[1750792694752,0.69526524,143.83,143.81,88.7]
[1750792694958,0.69526524,143.83,143.8,6.64217687]
[1750792697051,7.33734544,143.85,143.81,6.64217687]
[1750792697658,6.64217687,143.84,143.8,6.64217687]
[1750792699156,0.69526524,143.83,143.8,6.64217687]
[1750792699357,0.69526524,143.83,143.8,95.34217687]
[1750792699527,0.69526524,143.83,143.8,6.64217687]
[1750792700257,7.33744211,143.83,143.78,88.7]
[1750792700565,7.33744211,143.83,143.69,65.67474585]
[1750792700566,6.64217687,143.8,143.73,6.251]
[1750792700858,6.64217687,143.77,143.72,6.64217687]
[1750792701063,6.64217687,143.75,143.71,6.64217687]
[1750792701362,6.64217687,143.75,143.7,6.64217687]
[1750792701363,0.69570057,143.74,143.7,6.64217687]
[1750792701729,6.36,143.76,143.73,6.64217687]
[1750792702035,7.055607,143.76,143.74,6.64217687]
[1750792702261,7.055607,143.76,143.73,6.64217687]
[1750792706675,7.055607,143.76,143.73,95.34217687]
[1750792707778,7.055607,143.76,143.73,88.7]
[1750792707954,7.055607,143.76,143.73,95.34217687]
[1750792714889,7.055607,143.76,143.73,88.7]
[1750792715188,7.055607,143.76,143.73,95.34217687]
[1750792721879,6.36,143.76,143.73,95.34217687]
[1750792722090,7.05560838,143.76,143.75,6.64217687]
[1750792723077,6.36,143.76,143.75,6.64217687]
[1750792723490,32.64217687,143.79,143.75,6.64217687]
[1750792723491,0.69555645,143.77,143.75,6.64217687]
[1750792725701,0.69555645,143.77,143.73,88.7]
[1750792725903,0.69555645,143.77,143.75,6.64217687]
[1750792726491,0.69551495,143.78,143.75,6.64217687]
[1750792726694,32.38,143.81,143.77,6.64217687]
[1750792726893,32.38,143.81,143.78,6.64217687]
[1750792727201,7.07538134,143.81,143.79,6.64217687]
[1750792727796,7.07538134,143.81,143.75,6.95652173]
[1750792728102,7.07538134,143.81,143.78,6.64217687]
[1750792728810,7.07538134,143.81,143.79,6.64217687]
[1750792729216,7.07538134,143.81,143.78,6.64217687]
[1750792729908,6.64217687,143.8,143.76,6.64217687]
[1750792730088,6.64217687,143.8,143.75,6.64217687]
[1750792730290,0.69545865,143.79,143.75,6.64217687]
[1750792732098,6.64217687,143.77,143.72,6.64217687]
[1750792732321,6.64217687,143.76,143.72,6.64217687]
[1750792733825,0.69565217,143.75,143.7,13.50666333]
[1750792734128,0.69565217,143.75,143.71,6.64217687]
[1750792735210,0.69565217,143.75,143.72,6.64217687]
[1750792735526,0.6955554,143.77,143.74,6.64217687]
[1750792737807,6.64217687,143.76,143.7,6.5479]
[1750792738002,6.64217687,143.73,143.68,8.16897687]
[1750792738224,6.64217687,143.73,143.67,6.64217687]
[1750792738225,0.6958458,143.71,143.67,6.64217687]
[1750792738526,0.6958458,143.71,143.66,6.3396]
[1750792738527,0.69581109,143.72,143.68,6.64217687]
[1750792738728,28.86,143.73,143.71,6.64217687]
[1750792739613,28.86,143.73,143.72,6.64217687]
[1750792740141,0.69571617,143.74,143.72,6.64217687]
[1750792741522,0.69571617,143.74,143.71,6.64217687]
[1750792742137,0.69571617,143.74,143.68,6.95969833]
[1750792742138,0.69571617,143.74,143.7,6.64217687]
[1750792742641,0.69571617,143.74,143.71,6.64217687]
[1750792746549,7.33789304,143.74,143.7,6.64217687]
[1750792746952,0.69571617,143.74,143.7,6.64217687]
[1750792747119,0.69571617,143.74,143.71,6.64217687]
[1750792747943,0.69571617,143.74,143.72,6.64217687]
[1750792748442,6.36,143.75,143.73,6.64217687]
[1750792748637,6.36,143.75,143.74,6.64217687]
[1750792751117,0.69547232,143.79,143.74,6.64217687]
[1750792751317,7.05543345,143.8,143.78,6.64217687]
[1750792751537,7.05543345,143.8,143.79,6.64217687]
[1750792751538,6.36,143.8,143.79,6.64217687]
[1750792751742,6.36,143.8,143.73,115.39548882]
[1750792751914,6.36,143.8,143.79,6.64217687]
[1750792752946,7.05541029,143.8,143.76,6.64217687]
[1750792753117,6.64217687,143.79,143.75,6.64217687]
[1750792753321,15.43611289,143.8,143.75,6.64217687]
[1750792753539,15.43611289,143.8,143.73,32.95746247]
[1750792753540,15.43611289,143.8,143.76,6.64217687]
[1750792755744,15.43611289,143.8,143.73,32.9574384]
[1750792755956,15.43611289,143.8,143.76,6.64217687]
[1750792756848,15.43611289,143.8,143.75,6.64217687]
[1750792758233,0.6955554,143.77,143.74,6.64217687]
[1750792758431,0.6955554,143.77,143.74,95.34217687]
[1750792760960,0.69550702,143.78,143.74,88.7]
[1750792761250,0.69550702,143.78,143.75,6.64217687]
[1750792761455,0.69550702,143.78,143.76,6.64217687]
[1750792765983,6.36,143.8,143.77,6.64217687]
[1750792766285,7.05543045,143.8,143.78,6.64217687]
[1750792767279,7.05541029,143.8,143.79,6.64217687]
[1750792767464,6.36,143.8,143.79,6.64217687]
[1750792769676,7.05541029,143.8,143.78,6.64217687]
[1750792774584,7.05541029,143.8,143.77,6.64217687]
[1750792774878,7.05541029,143.8,143.77,95.34217687]
[1750792776056,7.05541029,143.8,143.78,6.64217687]
[1750792776584,6.36,143.8,143.79,6.64217687]
[1750792778468,6.36,143.8,143.79,95.34217687]
[1750792779384,5.86,143.8,143.79,95.34217687]
[1750792783290,6.55541029,143.8,143.79,88.7]
[1750792783592,5.86,143.8,143.79,95.34217687]
[1750792785074,6.55541029,143.8,143.79,95.34217687]
[1750792785493,6.55541029,143.8,143.79,88.7]
[1750792789495,6.55541029,143.8,143.78,95.34217687]
[1750792790887,6.55541029,143.8,143.79,6.64217687]
[1750792792585,6.55541029,143.8,143.78,95.34217687]
[1750792795302,6.55541029,143.8,143.79,6.64217687]
[1750792795497,5.86,143.8,143.79,6.64217687]
[1750792796690,6.32,143.85,143.79,95.34217687]
[1750792796996,6.64217687,143.82,143.78,6.64217687]
[1750792797507,0.69536193,143.81,143.77,13.13757687]
[1750792798008,0.69536193,143.81,143.79,6.64217687]
[1750792798190,7.3375388,143.81,143.77,6.64217687]
[1750792798396,6.64217687,143.8,143.76,6.64217687]
[1750792799879,0.69545865,143.79,143.76,6.64217687]
[1750792800314,0.69545865,143.79,143.77,6.64217687]
[1750792800808,0.69545865,143.79,143.76,6.64217687]
[1750792801009,2.43410528,143.79,143.74,32.64217687]
[1750792801181,9.07628215,143.79,143.74,32.64217687]
[1750792801386,9.07628215,143.79,143.75,6.64217687]
[1750792802196,6.64217687,143.78,143.74,6.64217687]
[1750792802402,6.64217687,143.78,143.73,6.64217687]
[1750792802810,6.64217687,143.77,143.73,6.64217687]
[1750792803001,6.64217687,143.75,143.71,6.64217687]
[1750792803199,18.64964886,143.77,143.7,13.15477687]
[1750792803432,6.64217687,143.75,143.7,13.15477687]
[1750792803730,54.78,143.78,143.7,13.15477687]
[1750792803731,54.78,143.78,143.74,6.64217687]
[1750792803891,61.42217687,143.78,143.74,6.64217687]
[1750792804090,0.6955554,143.77,143.74,6.64217687]
[1750792805004,29.47552893,143.78,143.75,6.64217687]
[1750792807313,6.32,143.79,143.77,6.64217687]
[1750792807518,6.32,143.79,143.78,6.64217687]
[1750792807906,6.32,143.79,143.74,8.60125456]
[1750792808101,6.32,143.79,143.77,6.64217687]
[1750792808300,6.32,143.79,143.78,6.64217687]
[1750792809608,6.32,143.79,143.77,95.34217687]
[1750792810322,7.01547299,143.79,143.77,95.34217687]
[1750792811023,7.01547299,143.79,143.77,88.7]
[1750792812422,6.32,143.79,143.77,95.34217687]
[1750792813111,6.32,143.79,143.75,13.23284753]
[1750792813112,6.64217687,143.78,143.75,88.7]
[1750792814024,6.64217687,143.78,143.74,6.64217687]
[1750792814216,0.6955554,143.77,143.74,6.64217687]
[1750792815333,0.6955554,143.77,143.75,6.64217687]
[1750792816109,0.69550702,143.78,143.75,6.64217687]
[1750792816716,7.01547061,143.79,143.76,6.64217687]
[1750792816916,7.01547061,143.79,143.77,6.64217687]
[1750792822133,7.01547061,143.79,143.77,95.34217687]
[1750792827638,6.32,143.79,143.78,6.64217687]
[1750792828019,6.32,143.79,143.78,95.34217687]
[1750792830553,0.69526524,143.83,143.78,95.34217687]
[1750792830865,0.69526524,143.83,143.79,6.64217687]
[1750792831355,26.0,143.81,143.79,6.64217687]
[1750792833355,26.69538152,143.81,143.79,6.64217687]
[1750792833857,26.69538152,143.81,143.79,95.34217687]
[1750792834954,26.69538152,143.81,143.8,6.64217687]
[1750792834955,26.0,143.81,143.8,6.64217687]
[1750792835159,6.99524239,143.84,143.8,95.34217687]
[1750792835329,6.99524239,143.84,143.82,6.64217687]
[1750792835647,6.99524239,143.84,143.82,95.34217687]
[1750792839950,6.99524239,143.84,143.82,88.7]
[1750792840149,6.3,143.84,143.82,88.7]
[1750792840349,26.0,143.85,143.83,6.64217687]
[1750792840778,26.0,143.85,143.82,101.75727687]
[1750792841373,11.38939554,143.86,143.82,101.75727687]
[1750792842669,10.69425198,143.86,143.83,6.64217687]
[1750792843462,10.69425198,143.86,143.82,102.06811564]
[1750792843669,10.69425198,143.86,143.83,6.64217687]
[1750792843854,10.69425198,143.86,143.82,102.06811564]
[1750792843855,10.69425198,143.86,143.85,6.64217687]
[1750792844179,10.69425198,143.86,143.82,121.41283782]
[1750792844180,10.69425198,143.86,143.84,6.64217687]
[1750792844679,10.69425198,143.86,143.84,13.59426579]
[1750792845383,10.69425198,143.86,143.85,6.64217687]
[1750792847353,11.38937223,143.86,143.82,101.75727687]
[1750792851581,11.38937223,143.86,143.82,13.05727687]
[1750792852283,11.38937223,143.86,143.83,6.64217687]
[1750792853582,10.69425198,143.86,143.83,6.64217687]
[1750792854285,10.69425198,143.86,143.85,6.64217687]
[1750792854678,0.6950441,143.88,143.85,6.64217687]
[1750792854876,0.6950441,143.88,143.84,6.64217687]
[1750792860185,7.33722097,143.88,143.83,95.34217687]
[1750792863094,0.6950441,143.88,143.83,95.34217687]
[1750792863273,7.33722097,143.88,143.84,6.64217687]
[1750792863473,7.33722097,143.88,143.84,95.34217687]
[1750792864085,0.6950441,143.88,143.84,95.34217687]
[1750792864292,7.33722097,143.88,143.84,95.34217687]
[1750792865281,7.33722097,143.88,143.84,88.7]
[1750792865477,6.64217687,143.87,143.84,88.7]
[1750792866394,6.64217687,143.86,143.84,88.7]
[1750792866596,6.64217687,143.85,143.82,88.7]
[1750792866783,6.64217687,143.83,143.78,94.7531]
[1750792866984,6.64217687,143.82,143.78,94.7531]
[1750792867502,6.64217687,143.82,143.74,1.608]
[1750792867503,6.64217687,143.79,143.75,6.64217687]
[1750792868003,6.64217687,143.8,143.74,33.33647076]
[1750792868181,6.64217687,143.8,143.76,6.64217687]
[1750792869908,7.33761416,143.8,143.74,33.33647076]
[1750792870088,7.33761416,143.8,143.75,6.64217687]
[1750792870719,7.33761416,143.8,143.76,6.64217687]
[1750792871019,0.69531358,143.82,143.78,6.64217687]
[1750792871218,13.61745971,143.83,143.79,6.64217687]
[1750792871500,6.97528284,143.83,143.79,6.64217687]
[1750792871716,6.28,143.83,143.79,6.64217687]
[1750792871909,6.28,143.83,143.8,13.59627979]
[1750792872088,6.28,143.83,143.81,6.64217687]
[1750792872795,6.97526558,143.83,143.8,6.64217687]
[1750792873309,13.61744245,143.83,143.77,95.65546392]
[1750792873494,13.61744245,143.83,143.78,6.64217687]
[1750792873992,0.69541029,143.8,143.78,88.7]
[1750792874196,7.33758716,143.8,143.78,88.7]
[1750792874489,7.33758716,143.8,143.74,33.33665199]
[1750792874490,6.64217687,143.79,143.74,103.07237687]
[1750792875118,6.64217687,143.79,143.75,6.64217687]
[1750792875824,6.64217687,143.79,143.74,103.07237687]
[1750792876330,7.33766958,143.79,143.74,103.07237687]
[1750792876515,7.33766958,143.79,143.75,6.64217687]
[1750792878518,7.33766958,143.79,143.74,14.37237687]
[1750792879143,6.64217687,143.78,143.72,51.60747548]
[1750792879325,6.64217687,143.77,143.72,32.64217687]
[1750792879633,2.43413934,143.79,143.72,13.60006837]
[1750792879833,6.64217687,143.77,143.72,13.60006837]
[1750792881124,7.33774475,143.77,143.72,13.60006837]
[1750792881638,0.69552508,143.78,143.74,6.64217687]
[1750792881819,0.69552508,143.78,143.75,6.64217687]
[1750792882367,7.33765516,143.79,143.75,6.64217687]
[1750792882524,0.69547829,143.79,143.75,6.64217687]
[1750792884463,33.33760487,143.8,143.76,6.64217687]
[1750792885540,6.64217687,143.81,143.76,13.59816182]
[1750792885741,6.64217687,143.81,143.76,102.29816182]
[1750792886553,7.33749045,143.82,143.78,6.64217687]
[1750792886757,6.64217687,143.81,143.76,95.34217687]
[1750792887354,6.64217687,143.81,143.76,102.2981925]
[1750792887650,7.33757408,143.81,143.76,102.2981925]
[1750792888231,7.33757408,143.81,143.77,6.64217687]
[1750792889147,13.06088524,143.87,143.8,18.64964886]
[1750792889351,13.75597958,143.87,143.83,6.64217687]
[1750792889939,20.39815645,143.87,143.82,6.64217687]
[1750792890464,6.64217687,143.84,143.79,13.59655541]
[1750792890752,6.64217687,143.85,143.8,6.64217687]
[1750792891752,7.3373696,143.85,143.79,6.95437854]
[1750792891927,6.64217687,143.84,143.8,6.64217687]
[1750792892130,0.69519273,143.85,143.81,6.64217687]
[1750792893533,6.64217687,143.84,143.79,6.64217687]